[Event "*** Titled Tuesday Blitz"]
[Site "Chess.com"]
[Date "2021.04.27"]
[Round "1"]
[White "OhanyanEminChess"]
[Black "ajdemipopushi"]
[Result "1-0"]
[WhiteElo "2661"]
[BlackElo "2328"]
[TimeControl "180+1"]
[EndTime "10:05:58 PDT"]
[Termination "OhanyanEminChess won on time"]

1. e4 {[%clk 0:02:58.4]} 1... c5 {[%clk 0:03:00]} 2. Nf3 {[%clk 0:02:58.1]} 2...
g6 {[%clk 0:03:00.4]} 3. d4 {[%clk 0:02:58]} 3... cxd4 {[%clk 0:03:00.7]} 4.
Nxd4 {[%clk 0:02:58.9]} 4... Bg7 {[%clk 0:03:01.2]} 5. Nc3 {[%clk 0:02:59.4]}
5... Nc6 {[%clk 0:03:01.8]} 6. Be3 {[%clk 0:02:59.4]} 6... Nf6 {[%clk
0:03:02.1]} 7. Nxc6 {[%clk 0:02:59.9]} 7... bxc6 {[%clk 0:03:01.6]} 8. e5 {[%clk
0:03:00.5]} 8... Ng8 {[%clk 0:03:01.4]} 9. Bd4 {[%clk 0:03:01.1]} 9... Qa5
{[%clk 0:02:59]} 10. Bc4 {[%clk 0:02:59.7]} 10... Bxe5 {[%clk 0:02:54.4]} 11.
O-O {[%clk 0:02:58.4]} 11... Bxd4 {[%clk 0:02:51.3]} 12. Qxd4 {[%clk 0:02:58]}
12... f6 {[%clk 0:02:51.4]} 13. Rfe1 {[%clk 0:02:40.5]} 13... d5 {[%clk
0:02:48.6]} 14. Bxd5 {[%clk 0:01:54.4]} 14... cxd5 {[%clk 0:02:42.1]} 15. Nxd5
{[%clk 0:01:55.3]} 15... Qd8 {[%clk 0:00:18.5]} 16. Rad1 {[%clk 0:01:17.6]}
16... Kf8 {[%clk 0:00:15.4]} 17. Qc3 {[%clk 0:01:00.5]} 17... Bb7 {[%clk
0:00:07.1]} 18. Nxe7 {[%clk 0:00:50.3]} 1-0

[Event "*** Titled Tuesday Blitz"]
[Site "Chess.com"]
[Date "2021.04.27"]
[Round "1"]
[White "chessajedrezz2020"]
[Black "KetiGrant"]
[Result "1-0"]
[WhiteElo "2699"]
[BlackElo "2358"]
[TimeControl "180+1"]
[EndTime "10:06:01 PDT"]
[Termination "chessajedrezz2020 won on time"]

1. Nf3 {[%clk 0:02:56.4]} 1... Nf6 {[%clk 0:02:57.2]} 2. d4 {[%clk 0:02:52.5]}
2... g6 {[%clk 0:02:56.5]} 3. Nc3 {[%clk 0:02:51.1]} 3... d5 {[%clk 0:02:55.8]}
4. Bg5 {[%clk 0:02:49.3]} 4... Bg7 {[%clk 0:02:56.1]} 5. Bxf6 {[%clk 0:02:49.2]}
5... Bxf6 {[%clk 0:02:55.6]} 6. e4 {[%clk 0:02:50.1]} 6... dxe4 {[%clk
0:02:52.5]} 7. Nxe4 {[%clk 0:02:51]} 7... Bg7 {[%clk 0:02:53.1]} 8. h3 {[%clk
0:02:50.3]} 8... O-O {[%clk 0:02:50.9]} 9. Bc4 {[%clk 0:02:48.8]} 9... Nd7
{[%clk 0:02:46.3]} 10. O-O {[%clk 0:02:45]} 10... Nf6 {[%clk 0:02:45.2]} 11. Nc5
{[%clk 0:02:39.6]} 11... b6 {[%clk 0:02:43.2]} 12. Nd3 {[%clk 0:02:37.3]} 12...
Bb7 {[%clk 0:02:40.8]} 13. Nde5 {[%clk 0:02:37.2]} 13... Nd5 {[%clk 0:02:19.6]}
14. c3 {[%clk 0:02:32.7]} 14... c5 {[%clk 0:02:17.2]} 15. dxc5 {[%clk 0:02:30]}
15... bxc5 {[%clk 0:02:16.8]} 16. Qb3 {[%clk 0:02:29.9]} 16... Rb8 {[%clk
0:02:04.9]} 17. Rad1 {[%clk 0:02:26]} 17... e6 {[%clk 0:02:02.3]} 18. Qa4 {[%clk
0:02:21.8]} 18... Qc7 {[%clk 0:01:59.3]} 19. Rfe1 {[%clk 0:02:09.1]} 19... Nb6
{[%clk 0:01:25.3]} 20. Qa5 {[%clk 0:01:47.8]} 20... Rbd8 {[%clk 0:01:00.1]} 21.
Rxd8 {[%clk 0:01:38.7]} 21... Rxd8 {[%clk 0:00:59.9]} 22. Nxf7 {[%clk
0:01:31.7]} 22... Bxf3 {[%clk 0:00:17.2]} 23. Nxd8 {[%clk 0:01:23.5]} 23... Qxd8
{[%clk 0:00:16.4]} 24. Bxe6+ {[%clk 0:01:18.9]} 24... Kh8 {[%clk 0:00:15.8]} 25.
gxf3 {[%clk 0:01:18.7]} 25... Qg5+ {[%clk 0:00:11.7]} 26. Kf1 {[%clk 0:01:16.4]}
26... Bf6 {[%clk 0:00:04.1]} 27. Qxa7 {[%clk 0:01:11.2]} 1-0

[Event "*** Titled Tuesday Blitz"]
[Site "Chess.com"]
[Date "2021.04.27"]
[Round "1"]
[White "scandalgod"]
[Black "OlifantCZ"]
[Result "1-0"]
[WhiteElo "2587"]
[BlackElo "2253"]
[TimeControl "180+1"]
[EndTime "10:06:01 PDT"]
[Termination "scandalgod won by resignation"]

1. d4 {[%clk 0:02:46.3]} 1... Nf6 {[%clk 0:02:58]} 2. c4 {[%clk 0:02:45.8]} 2...
g6 {[%clk 0:02:57]} 3. Nc3 {[%clk 0:02:45.2]} 3... Bg7 {[%clk 0:02:56.8]} 4. e4
{[%clk 0:02:44.9]} 4... O-O {[%clk 0:02:57.4]} 5. f4 {[%clk 0:02:44.5]} 5... c5
{[%clk 0:02:56.1]} 6. d5 {[%clk 0:02:44.3]} 6... d6 {[%clk 0:02:55.1]} 7. Nf3
{[%clk 0:02:44.5]} 7... e6 {[%clk 0:02:55.1]} 8. Be2 {[%clk 0:02:44.4]} 8...
exd5 {[%clk 0:02:55.1]} 9. cxd5 {[%clk 0:02:45.3]} 9... Re8 {[%clk 0:02:53.8]}
10. e5 {[%clk 0:02:45.6]} 10... dxe5 {[%clk 0:02:52.7]} 11. fxe5 {[%clk
0:02:40.5]} 11... Ng4 {[%clk 0:02:53.2]} 12. Bg5 {[%clk 0:02:40.1]} 12... Qb6
{[%clk 0:02:52.7]} 13. O-O {[%clk 0:02:40.1]} 13... Bf5 {[%clk 0:02:51.9]} 14.
d6 {[%clk 0:02:39.1]} 14... Qxb2 {[%clk 0:02:46]} 15. Nd5 {[%clk 0:02:33]} 15...
Nc6 {[%clk 0:02:45.6]} 16. Nc7 {[%clk 0:02:15.7]} 16... Ngxe5 {[%clk 0:02:36.8]}
17. Nxa8 {[%clk 0:02:11.8]} 17... Rxa8 {[%clk 0:02:32.3]} 18. Rc1 {[%clk
0:01:56.3]} 18... b6 {[%clk 0:02:26.8]} 19. Kh1 {[%clk 0:01:33.8]} 19... Nd4
{[%clk 0:02:21.2]} 20. Nxd4 {[%clk 0:01:29.8]} 20... Qxd4 {[%clk 0:02:15.5]} 21.
Bf3 {[%clk 0:01:16.7]} 21... Nxf3 {[%clk 0:02:14]} 22. Qxf3 {[%clk 0:01:14.9]}
22... Qe4 {[%clk 0:02:06.2]} 23. Qxe4 {[%clk 0:01:10.4]} 23... Bxe4 {[%clk
0:02:06]} 24. d7 {[%clk 0:01:10.6]} 24... f6 {[%clk 0:02:06]} 25. Rxf6 {[%clk
0:01:06.5]} 25... h6 {[%clk 0:01:45.4]} 26. Re6 {[%clk 0:01:01.6]} 26... Kf7
{[%clk 0:01:12.9]} 27. Rxe4 {[%clk 0:00:51.4]} 27... hxg5 {[%clk 0:01:12.5]} 28.
Rf1+ {[%clk 0:00:51.3]} 28... Bf6 {[%clk 0:01:11.6]} 29. Re8 {[%clk 0:00:50.1]}
29... Rxe8 {[%clk 0:00:47.6]} 30. Rxf6+ {[%clk 0:00:48]} 30... Ke7 {[%clk
0:00:45.3]} 31. dxe8=Q+ {[%clk 0:00:46.5]} 31... Kxe8 {[%clk 0:00:45.6]} 32.
Rxg6 {[%clk 0:00:44.9]} 32... Kd7 {[%clk 0:00:42.5]} 33. Rg7+ {[%clk 0:00:43.2]}
1-0

[Event "*** Titled Tuesday Blitz"]
[Site "Chess.com"]
[Date "2021.04.27"]
[Round "1"]
[White "GregShahade"]
[Black "NoGalloNoParty"]
[Result "1/2-1/2"]
[WhiteElo "2664"]
[BlackElo "2348"]
[TimeControl "180+1"]
[EndTime "10:06:02 PDT"]
[Termination "Game drawn by repetition"]

1. e4 {[%clk 0:03:00.9]} 1... c5 {[%clk 0:02:59.5]} 2. Nf3 {[%clk 0:03:01.1]}
2... d6 {[%clk 0:02:58.1]} 3. d4 {[%clk 0:03:01.4]} 3... cxd4 {[%clk 0:02:58.2]}
4. Nxd4 {[%clk 0:03:02.3]} 4... Nf6 {[%clk 0:02:58.2]} 5. Nc3 {[%clk 0:03:02.8]}
5... a6 {[%clk 0:02:57.9]} 6. Be3 {[%clk 0:03:00.6]} 6... e5 {[%clk 0:02:55.7]}
7. Nb3 {[%clk 0:03:00.7]} 7... Be7 {[%clk 0:02:50.2]} 8. f3 {[%clk 0:02:58.7]}
8... O-O {[%clk 0:02:45]} 9. Qd2 {[%clk 0:02:58]} 9... Be6 {[%clk 0:02:24.3]}
10. O-O-O {[%clk 0:02:53.3]} 10... a5 {[%clk 0:02:23]} 11. a4 {[%clk 0:02:50.6]}
11... Nc6 {[%clk 0:02:19.9]} 12. g4 {[%clk 0:02:49.3]} 12... Nb4 {[%clk
0:02:16.9]} 13. g5 {[%clk 0:02:36.3]} 13... Ne8 {[%clk 0:02:11.9]} 14. f4 {[%clk
0:02:36.2]} 14... exf4 {[%clk 0:02:06.8]} 15. Bxf4 {[%clk 0:02:37.1]} 15... Rc8
{[%clk 0:01:25]} 16. Kb1 {[%clk 0:02:35.9]} 16... d5 {[%clk 0:01:17]} 17. Nxd5
{[%clk 0:02:25]} 17... Rxc2 {[%clk 0:01:07.4]} 18. Qxc2 {[%clk 0:01:36.3]} 18...
Nxc2 {[%clk 0:01:06.8]} 19. Nf6+ {[%clk 0:01:36.5]} 19... Nxf6 {[%clk
0:00:43.9]} 20. Rxd8 {[%clk 0:01:35.5]} 20... Bxd8 {[%clk 0:00:43.5]} 21. Kxc2
{[%clk 0:01:17.7]} 21... Nxe4 {[%clk 0:00:41.9]} 22. h4 {[%clk 0:01:14]} 22...
Bb6 {[%clk 0:00:38]} 23. Nd2 {[%clk 0:01:03.6]} 23... Rc8+ {[%clk 0:00:35.8]}
24. Kb1 {[%clk 0:00:54.4]} 24... Bf5 {[%clk 0:00:17.4]} 25. Ka2 {[%clk
0:00:54.3]} 25... Be6+ {[%clk 0:00:16.7]} 26. Kb1 {[%clk 0:00:50.2]} 26... Bf5
{[%clk 0:00:16.7]} 27. Ka2 {[%clk 0:00:50.4]} 27... Be6+ {[%clk 0:00:16.8]} 28.
Kb1 {[%clk 0:00:48.7]} 1/2-1/2

[Event "*** Titled Tuesday Blitz"]
[Site "Chess.com"]
[Date "2021.04.27"]
[Round "1"]
[White "Eliwood44"]
[Black "ajedrez1101"]
[Result "1-0"]
[WhiteElo "2514"]
[BlackElo "2158"]
[TimeControl "180+1"]
[EndTime "10:06:06 PDT"]
[Termination "Eliwood44 won by resignation"]

1. d4 {[%clk 0:03:00.3]} 1... b6 {[%clk 0:03:00.4]} 2. e4 {[%clk 0:02:59.8]}
2... Bb7 {[%clk 0:03:00.7]} 3. Nc3 {[%clk 0:02:59.5]} 3... e6 {[%clk 0:03:01.2]}
4. Bd3 {[%clk 0:02:58.8]} 4... Bb4 {[%clk 0:03:01.5]} 5. Ne2 {[%clk 0:02:58.4]}
5... Nf6 {[%clk 0:03:01.3]} 6. O-O {[%clk 0:02:57.1]} 6... d5 {[%clk 0:02:59]}
7. e5 {[%clk 0:02:56.9]} 7... Nfd7 {[%clk 0:02:59.2]} 8. a3 {[%clk 0:02:54.5]}
8... Be7 {[%clk 0:02:59.1]} 9. f4 {[%clk 0:02:52.2]} 9... g6 {[%clk 0:02:59.4]}
10. f5 {[%clk 0:02:39.2]} 10... gxf5 {[%clk 0:02:49.6]} 11. Nf4 {[%clk
0:02:38.5]} 11... c5 {[%clk 0:02:40.9]} 12. Qh5 {[%clk 0:02:36.9]} 12... Nf8
{[%clk 0:02:27.3]} 13. Bxf5 {[%clk 0:02:20.8]} 13... exf5 {[%clk 0:02:12.9]} 14.
e6 {[%clk 0:02:20.8]} 14... Ng6 {[%clk 0:02:10]} 15. exf7+ {[%clk 0:02:19.7]}
15... Kxf7 {[%clk 0:02:10.3]} 16. Qxf5+ {[%clk 0:02:17.9]} 16... Bf6 {[%clk
0:01:56.4]} 17. Nfxd5 {[%clk 0:02:14.6]} 17... Kg7 {[%clk 0:01:23.5]} 18. Nxf6
{[%clk 0:02:02.5]} 18... Rf8 {[%clk 0:01:15]} 19. Bh6+ {[%clk 0:01:46.4]} 19...
Kh8 {[%clk 0:01:04.1]} 20. Bxf8 {[%clk 0:01:44.4]} 20... Qxf8 {[%clk 0:01:05]}
21. d5 {[%clk 0:01:39.2]} 21... Bc8 {[%clk 0:00:49.7]} 22. Qh5 {[%clk
0:01:25.6]} 22... Qg7 {[%clk 0:00:46.1]} 23. Rae1 {[%clk 0:01:22.1]} 23... Bd7
{[%clk 0:00:40.5]} 24. Nce4 {[%clk 0:01:14.1]} 24... Na6 {[%clk 0:00:22.7]} 25.
Ng5 {[%clk 0:01:07.5]} 25... Nf8 {[%clk 0:00:18.1]} 26. Nxd7 {[%clk 0:00:58.1]}
26... Nxd7 {[%clk 0:00:16.2]} 27. Rf7 {[%clk 0:00:53.1]} 1-0

[Event "*** Titled Tuesday Blitz"]
[Site "Chess.com"]
[Date "2021.04.27"]
[Round "1"]
[White "lacafi"]
[Black "laboratorio25"]
[Result "0-1"]
[WhiteElo "2183"]
[BlackElo "2526"]
[TimeControl "180+1"]
[EndTime "10:06:10 PDT"]
[Termination "laboratorio25 won on time"]

1. d4 {[%clk 0:03:00.8]} 1... d5 {[%clk 0:02:58.2]} 2. Nf3 {[%clk 0:03:01.1]}
2... Nf6 {[%clk 0:02:57.9]} 3. e3 {[%clk 0:03:01.2]} 3... g6 {[%clk 0:02:55.6]}
4. Be2 {[%clk 0:03:00]} 4... Bg7 {[%clk 0:02:55.5]} 5. O-O {[%clk 0:03:00.6]}
5... O-O {[%clk 0:02:54.9]} 6. b3 {[%clk 0:03:01.3]} 6... b6 {[%clk 0:02:55]} 7.
Bb2 {[%clk 0:03:01.9]} 7... Bb7 {[%clk 0:02:55.3]} 8. Nbd2 {[%clk 0:03:02.4]}
8... c5 {[%clk 0:02:55.2]} 9. c4 {[%clk 0:03:02.3]} 9... Nbd7 {[%clk 0:02:51.2]}
10. cxd5 {[%clk 0:03:00.7]} 10... Nxd5 {[%clk 0:02:49.9]} 11. Rc1 {[%clk
0:02:58.3]} 11... Rc8 {[%clk 0:02:44.6]} 12. Nc4 {[%clk 0:02:34.6]} 12... b5
{[%clk 0:02:31.7]} 13. Nce5 {[%clk 0:02:29.8]} 13... Nxe5 {[%clk 0:02:31.3]} 14.
dxe5 {[%clk 0:02:30]} 14... Qa5 {[%clk 0:02:22.6]} 15. a3 {[%clk 0:02:26.8]}
15... Rfd8 {[%clk 0:02:20]} 16. Qc2 {[%clk 0:02:24.8]} 16... a6 {[%clk
0:02:13.8]} 17. Rfd1 {[%clk 0:02:12.6]} 17... Qb6 {[%clk 0:02:08.2]} 18. Ng5
{[%clk 0:02:05.4]} 18... c4 {[%clk 0:01:39.7]} 19. bxc4 {[%clk 0:02:00.8]} 19...
Nxe3 {[%clk 0:01:39.2]} 20. Qb3 {[%clk 0:01:37.8]} 20... Nxd1 {[%clk 0:01:14.8]}
21. c5 {[%clk 0:01:31]} 21... Bd5 {[%clk 0:01:13.8]} 22. Qxd1 {[%clk 0:00:58.6]}
22... Rxc5 {[%clk 0:01:04]} 23. Rxc5 {[%clk 0:00:49.3]} 23... Qxc5 {[%clk
0:01:04.9]} 24. e6 {[%clk 0:00:20]} 24... Bxb2 {[%clk 0:00:55.4]} 25. exf7+
{[%clk 0:00:19.5]} 25... Kg7 {[%clk 0:00:50.2]} 0-1

[Event "*** Titled Tuesday Blitz"]
[Site "Chess.com"]
[Date "2021.04.27"]
[Round "1"]
[White "Kostukov_Alex"]
[Black "Kretov_Evgenij"]
[Result "0-1"]
[WhiteElo "2308"]
[BlackElo "2643"]
[TimeControl "180+1"]
[EndTime "10:06:11 PDT"]
[Termination "Kretov_Evgenij won by checkmate"]

1. g3 {[%clk 0:03:00.3]} 1... c5 {[%clk 0:02:54.6]} 2. Bg2 {[%clk 0:03:00.3]}
2... Nf6 {[%clk 0:02:54.2]} 3. c4 {[%clk 0:02:59.8]} 3... d5 {[%clk 0:02:52.7]}
4. cxd5 {[%clk 0:02:59.5]} 4... Nxd5 {[%clk 0:02:53.1]} 5. Nf3 {[%clk 0:03:00]}
5... Nc6 {[%clk 0:02:52.9]} 6. O-O {[%clk 0:03:00]} 6... Nc7 {[%clk 0:02:52.9]}
7. Nc3 {[%clk 0:03:00.1]} 7... e5 {[%clk 0:02:53]} 8. d3 {[%clk 0:02:59.9]} 8...
Be7 {[%clk 0:02:53.4]} 9. Be3 {[%clk 0:02:51.5]} 9... O-O {[%clk 0:02:49]} 10.
Rc1 {[%clk 0:02:42.1]} 10... Ne6 {[%clk 0:02:46.2]} 11. Nd2 {[%clk 0:02:17]}
11... Bd7 {[%clk 0:02:44.3]} 12. a4 {[%clk 0:02:09.1]} 12... Rc8 {[%clk
0:02:42.8]} 13. Nc4 {[%clk 0:02:06.2]} 13... Ned4 {[%clk 0:02:39.7]} 14. Nd5
{[%clk 0:01:55]} 14... Be6 {[%clk 0:02:36.4]} 15. Nxe7+ {[%clk 0:01:53.2]} 15...
Qxe7 {[%clk 0:02:36.6]} 16. Bxd4 {[%clk 0:01:41.1]} 16... exd4 {[%clk
0:02:34.4]} 17. Qd2 {[%clk 0:01:00.1]} 17... Rfe8 {[%clk 0:02:30]} 18. Rfe1
{[%clk 0:00:59]} 18... h6 {[%clk 0:02:03.4]} 19. h4 {[%clk 0:00:58.1]} 19... Qc7
{[%clk 0:01:57.9]} 20. Na3 {[%clk 0:00:40.5]} 20... Nb4 {[%clk 0:01:50.8]} 21.
Nb5 {[%clk 0:00:34.5]} 21... Qb6 {[%clk 0:01:50.4]} 22. e3 {[%clk 0:00:23.7]}
22... dxe3 {[%clk 0:01:48.3]} 23. Rxe3 {[%clk 0:00:24.6]} 23... Red8 {[%clk
0:01:47.7]} 24. Rc3 {[%clk 0:00:22.3]} 24... Nd5 {[%clk 0:01:43.4]} 25. Bxd5
{[%clk 0:00:21.7]} 25... Rxd5 {[%clk 0:01:43.1]} 26. d4 {[%clk 0:00:19.6]} 26...
a6 {[%clk 0:01:30.5]} 27. dxc5 {[%clk 0:00:18.4]} 27... Rcxc5 {[%clk 0:01:23.2]}
28. Nd4 {[%clk 0:00:18.6]} 28... Rxc3 {[%clk 0:01:19.7]} 29. bxc3 {[%clk
0:00:18.1]} 29... Rd8 {[%clk 0:01:08.1]} 30. Qe1 {[%clk 0:00:16.9]} 30... Bd5
{[%clk 0:01:04.2]} 31. Re8+ {[%clk 0:00:16.5]} 31... Rxe8 {[%clk 0:01:04.5]} 32.
Qxe8+ {[%clk 0:00:17.2]} 32... Kh7 {[%clk 0:01:04.8]} 33. Nf5 {[%clk 0:00:13.2]}
33... Qb1+ {[%clk 0:01:04]} 34. Kh2 {[%clk 0:00:11.7]} 34... Qh1# {[%clk
0:01:03.9]} 0-1

[Event "*** Titled Tuesday Blitz"]
[Site "Chess.com"]
[Date "2021.04.27"]
[Round "1"]
[White "Mazanchenko_Dmitry"]
[Black "andriipalchuk"]
[Result "0-1"]
[WhiteElo "2266"]
[BlackElo "2596"]
[TimeControl "180+1"]
[EndTime "10:06:12 PDT"]
[Termination "andriipalchuk won by checkmate"]

1. e4 {[%clk 0:02:50.7]} 1... c6 {[%clk 0:02:58.1]} 2. Nc3 {[%clk 0:02:49.2]}
2... d5 {[%clk 0:02:59]} 3. Nf3 {[%clk 0:02:49.4]} 3... dxe4 {[%clk 0:02:58.8]}
4. Nxe4 {[%clk 0:02:50.3]} 4... Nf6 {[%clk 0:02:59.6]} 5. Nxf6+ {[%clk
0:02:50.4]} 5... exf6 {[%clk 0:03:00.5]} 6. d4 {[%clk 0:02:50.9]} 6... Bd6
{[%clk 0:02:59.8]} 7. Be2 {[%clk 0:02:51.3]} 7... O-O {[%clk 0:03:00.7]} 8. O-O
{[%clk 0:02:51.5]} 8... Re8 {[%clk 0:03:01.3]} 9. c4 {[%clk 0:02:49.2]} 9... Nd7
{[%clk 0:03:00.2]} 10. h3 {[%clk 0:02:49]} 10... Nf8 {[%clk 0:03:00.4]} 11. b3
{[%clk 0:02:46]} 11... Be6 {[%clk 0:03:00.8]} 12. Bb2 {[%clk 0:02:45.8]} 12...
Qd7 {[%clk 0:03:01.3]} 13. Re1 {[%clk 0:02:41.7]} 13... Ng6 {[%clk 0:02:59.3]}
14. Bf1 {[%clk 0:02:41.2]} 14... Nf4 {[%clk 0:02:59.5]} 15. Qc2 {[%clk
0:02:30.1]} 15... a5 {[%clk 0:02:36.1]} 16. a3 {[%clk 0:02:29.1]} 16... Bxh3
{[%clk 0:02:13.9]} 17. gxh3 {[%clk 0:02:15.7]} 17... Nxh3+ {[%clk 0:02:14.8]}
18. Kh1 {[%clk 0:02:15.2]} 18... Qg4 {[%clk 0:02:04.4]} 19. Bg2 {[%clk
0:01:36.3]} 19... Nf4 {[%clk 0:02:00.2]} 20. Rg1 {[%clk 0:00:23.4]} 20... Qh5+
{[%clk 0:01:54]} 21. Nh2 {[%clk 0:00:23.4]} 21... Ne2 {[%clk 0:01:40.8]} 22. f4
{[%clk 0:00:12.6]} 22... Bxf4 {[%clk 0:01:38.6]} 23. Bh3 {[%clk 0:00:11.5]}
23... Qxh3 {[%clk 0:01:34.7]} 24. Rg2 {[%clk 0:00:08.5]} 24... Ng3+ {[%clk
0:01:30.3]} 25. Kg1 {[%clk 0:00:08.5]} 25... Be3+ {[%clk 0:01:30]} 26. Rf2
{[%clk 0:00:08.8]} 26... Ne4 {[%clk 0:01:26.9]} 27. Rf1 {[%clk 0:00:04.9]} 27...
Nxf2 {[%clk 0:01:25.5]} 28. Rxf2 {[%clk 0:00:05]} 28... Qg3+ {[%clk 0:01:26]}
29. Kf1 {[%clk 0:00:04.2]} 29... Qxf2+ {[%clk 0:01:26.4]} 30. Qxf2 {[%clk
0:00:04.9]} 30... Bxf2 {[%clk 0:01:27.3]} 31. Kxf2 {[%clk 0:00:05.5]} 31... Re7
{[%clk 0:01:27.9]} 32. Nf3 {[%clk 0:00:05.7]} 32... Rae8 {[%clk 0:01:28.8]} 33.
Bc3 {[%clk 0:00:05.4]} 33... Re2+ {[%clk 0:01:28.4]} 34. Kg3 {[%clk 0:00:05.5]}
34... Ra2 {[%clk 0:01:28.9]} 35. Bxa5 {[%clk 0:00:04.8]} 35... Rxa3 {[%clk
0:01:29.2]} 36. b4 {[%clk 0:00:05.2]} 36... Ree3 {[%clk 0:01:27.2]} 37. d5
{[%clk 0:00:05.4]} 37... Rxf3+ {[%clk 0:01:28.1]} 38. Kg2 {[%clk 0:00:05.5]}
38... Rfb3 {[%clk 0:01:27]} 39. d6 {[%clk 0:00:04.7]} 39... Rb2+ {[%clk
0:01:27.9]} 40. Kf1 {[%clk 0:00:04.3]} 40... Ra1# {[%clk 0:01:28.8]} 0-1

[Event "*** Titled Tuesday Blitz"]
[Site "Chess.com"]
[Date "2021.04.27"]
[Round "1"]
[White "adriangschnitzer"]
[Black "WiktoriaPOL"]
[Result "1-0"]
[WhiteElo "2493"]
[BlackElo "2032"]
[TimeControl "180+1"]
[EndTime "10:06:12 PDT"]
[Termination "adriangschnitzer won by resignation"]

1. e4 {[%clk 0:02:50.2]} 1... c5 {[%clk 0:02:58.8]} 2. a3 {[%clk 0:02:49.7]}
2... d5 {[%clk 0:02:55.7]} 3. exd5 {[%clk 0:02:49.5]} 3... Qxd5 {[%clk
0:02:55.7]} 4. Nc3 {[%clk 0:02:48.4]} 4... Qd7 {[%clk 0:02:54.5]} 5. Nf3 {[%clk
0:02:48]} 5... Nc6 {[%clk 0:02:53.3]} 6. Bb5 {[%clk 0:02:47.1]} 6... a6 {[%clk
0:02:38.8]} 7. Ne5 {[%clk 0:02:46.4]} 7... Qe6 {[%clk 0:02:35.5]} 8. Bxc6+
{[%clk 0:02:43.9]} 8... bxc6 {[%clk 0:02:34.7]} 9. Qe2 {[%clk 0:02:44.2]} 9...
f6 {[%clk 0:02:29.6]} 10. Nc4 {[%clk 0:02:39.8]} 10... Qxe2+ {[%clk 0:02:28.2]}
11. Kxe2 {[%clk 0:02:40.7]} 11... e5 {[%clk 0:02:27.1]} 12. d3 {[%clk
0:02:37.7]} 12... Be6 {[%clk 0:02:26.2]} 13. Ne4 {[%clk 0:02:37]} 13... O-O-O
{[%clk 0:02:24.5]} 14. Be3 {[%clk 0:02:35]} 14... Bxc4 {[%clk 0:02:15.1]} 15.
dxc4 {[%clk 0:02:34.8]} 15... Kc7 {[%clk 0:01:51.2]} 16. Bxc5 {[%clk 0:02:26.7]}
16... Ne7 {[%clk 0:01:46.2]} 17. Rhd1 {[%clk 0:02:22.4]} 17... Rxd1 {[%clk
0:01:34]} 18. Rxd1 {[%clk 0:02:23.3]} 18... Nf5 {[%clk 0:01:34.1]} 19. g4 {[%clk
0:02:10.1]} 19... Bxc5 {[%clk 0:01:31.6]} 20. gxf5 {[%clk 0:02:05.7]} 20... Ba7
{[%clk 0:01:22]} 21. b4 {[%clk 0:01:58.1]} 21... Rb8 {[%clk 0:01:17.8]} 22. c5
{[%clk 0:01:52.4]} 22... Rd8 {[%clk 0:01:06.8]} 23. Rxd8 {[%clk 0:01:48.9]}
23... Kxd8 {[%clk 0:01:06.2]} 24. Kd3 {[%clk 0:01:45.5]} 24... Kd7 {[%clk
0:01:05.4]} 25. c4 {[%clk 0:01:42.1]} 25... Bb8 {[%clk 0:01:02]} 26. a4 {[%clk
0:01:41.2]} 26... Ke7 {[%clk 0:00:48.3]} 27. b5 {[%clk 0:01:36.8]} 27... axb5
{[%clk 0:00:47.3]} 28. cxb5 {[%clk 0:01:37.7]} 28... cxb5 {[%clk 0:00:46.2]} 29.
axb5 {[%clk 0:01:37.1]} 29... g6 {[%clk 0:00:46.8]} 30. Ng3 {[%clk 0:01:24.3]}
30... Ba7 {[%clk 0:00:41.2]} 31. b6 {[%clk 0:01:22.9]} 31... Bb8 {[%clk
0:00:39.4]} 32. c6 {[%clk 0:01:21.9]} 32... Bd6 {[%clk 0:00:38.7]} 33. Kc4
{[%clk 0:01:05]} 33... Kd8 {[%clk 0:00:27.1]} 34. Kd5 {[%clk 0:01:02.9]} 34...
Ke7 {[%clk 0:00:26]} 35. c7 {[%clk 0:01:00.2]} 35... Kd7 {[%clk 0:00:25.4]} 36.
c8=Q+ {[%clk 0:00:58.5]} 36... Kxc8 {[%clk 0:00:24.3]} 37. Kxd6 {[%clk
0:00:59.4]} 1-0

[Event "*** Titled Tuesday Blitz"]
[Site "Chess.com"]
[Date "2021.04.27"]
[Round "1"]
[White "VinzentSpitzl"]
[Black "anon102030"]
[Result "0-1"]
[WhiteElo "2409"]
[BlackElo "2758"]
[TimeControl "180+1"]
[EndTime "10:06:14 PDT"]
[Termination "anon102030 won by resignation"]

1. Nf3 {[%clk 0:02:58.6]} 1... d6 {[%clk 0:02:57.6]} 2. c4 {[%clk 0:02:57.8]}
2... g6 {[%clk 0:02:57.4]} 3. Nc3 {[%clk 0:02:57.5]} 3... Bg7 {[%clk 0:02:57.6]}
4. g3 {[%clk 0:02:57.3]} 4... Nc6 {[%clk 0:02:57.2]} 5. Bg2 {[%clk 0:02:57.3]}
5... e5 {[%clk 0:02:56.9]} 6. d3 {[%clk 0:02:55.9]} 6... h6 {[%clk 0:02:55.9]}
7. O-O {[%clk 0:02:54.5]} 7... Be6 {[%clk 0:02:55.9]} 8. Bd2 {[%clk 0:02:51]}
8... f5 {[%clk 0:02:54]} 9. a3 {[%clk 0:02:50.6]} 9... Nf6 {[%clk 0:02:53.7]}
10. b4 {[%clk 0:02:50.2]} 10... Qd7 {[%clk 0:02:47.1]} 11. b5 {[%clk 0:02:46.3]}
11... Ne7 {[%clk 0:02:47.4]} 12. Qc2 {[%clk 0:02:37.1]} 12... O-O {[%clk
0:02:46.5]} 13. e3 {[%clk 0:02:28.6]} 13... g5 {[%clk 0:02:28.2]} 14. Rfd1
{[%clk 0:02:22.3]} 14... Ng6 {[%clk 0:02:18.6]} 15. Ne1 {[%clk 0:02:09.6]} 15...
Rab8 {[%clk 0:02:15.3]} 16. a4 {[%clk 0:02:03.9]} 16... f4 {[%clk 0:02:15.2]}
17. exf4 {[%clk 0:01:53.8]} 17... exf4 {[%clk 0:02:14.4]} 18. Ne4 {[%clk
0:01:37.8]} 18... Nxe4 {[%clk 0:02:06.3]} 19. Bxe4 {[%clk 0:01:37.7]} 19... Bxa1
{[%clk 0:02:02.8]} 20. Rxa1 {[%clk 0:01:37.4]} 20... Bf5 {[%clk 0:01:56.5]} 21.
Bd5+ {[%clk 0:01:32.2]} 21... Kh7 {[%clk 0:01:57]} 22. Bc3 {[%clk 0:01:18.9]}
22... c6 {[%clk 0:01:56.3]} 23. Bg2 {[%clk 0:01:17]} 23... Rbe8 {[%clk
0:01:50.8]} 24. Nf3 {[%clk 0:01:16.4]} 24... fxg3 {[%clk 0:01:40.8]} 25. hxg3
{[%clk 0:01:04.7]} 25... Bg4 {[%clk 0:01:41.7]} 26. Nd2 {[%clk 0:00:36.2]} 26...
Re2 {[%clk 0:01:40.4]} 27. Rf1 {[%clk 0:00:35.9]} 27... Rf7 {[%clk 0:01:10.6]}
28. d4 {[%clk 0:00:35.4]} 28... Bf5 {[%clk 0:01:08]} 29. Qd1 {[%clk 0:00:35.1]}
29... Rfe7 {[%clk 0:01:03.6]} 30. Bf3 {[%clk 0:00:32.3]} 30... Bg4 {[%clk
0:00:54]} 31. Bxe2 {[%clk 0:00:32.2]} 31... Bxe2 {[%clk 0:00:52.2]} 32. Qc2
{[%clk 0:00:32.5]} 32... Bxf1 {[%clk 0:00:52.1]} 33. Kxf1 {[%clk 0:00:32.6]}
33... Qh3+ {[%clk 0:00:42.8]} 0-1